fUST/lending_fUST_20250131
["ID","MTS","AMOUNT","RATE_DAILY","PERIOD"]
[351049822,1738307446874,-500.0,0.00016986,2]
[351049824,1738307446883,-500.0,0.00016986,2]
[351049826,1738307446892,-500.0,0.00016986,2]
[351049828,1738307446901,-500.0,0.00016986,2]
[351049830,1738307446911,-500.0,0.00016986,2]
[351049832,1738307446920,-500.0,0.00016986,2]
[351049834,1738307446929,-500.0,0.00016986,2]
[351049836,1738307446938,-500.0,0.00016986,2]
[351049838,1738307446947,-500.0,0.00016986,2]
[351049840,1738307446956,-500.0,0.00016986,2]
[351049842,1738307446966,-500.0,0.00016986,2]
[351049844,1738307446975,-500.0,0.00016986,2]
[351049847,1738307446985,-500.0,0.00016986,2]
[351049849,1738307446995,-203.25959128,0.00016986,2]
[351049851,1738307447004,-500.0,0.00016986,2]
[351049853,1738307447014,-500.0,0.00016986,2]
[351049855,1738307447023,-500.0,0.00016986,2]
[351049857,1738307447033,-500.0,0.00016986,2]
[351049859,1738307447042,-500.0,0.00016986,2]
[351049861,1738307447051,-500.0,0.00016986,2]
[351049863,1738307447060,-222.860319,0.00016986,2]
[351049865,1738307447070,-500.0,0.00016986,2]
[351049867,1738307447079,-500.0,0.00016986,2]
[351049869,1738307447089,-500.0,0.00016986,2]
[351049871,1738307447098,-500.0,0.00016986,2]
[351049873,1738307447107,-500.0,0.00016986,2]
[351049875,1738307447117,-500.0,0.00016986,2]
[351049877,1738307447127,-500.0,0.00016986,2]
[351049879,1738307447137,-500.0,0.00016986,2]
[351049881,1738307447146,-500.0,0.00016986,2]
[351049883,1738307447156,-500.0,0.00016986,2]
[351049885,1738307447166,-500.0,0.00016986,2]
[351049887,1738307447176,-500.0,0.00016986,2]
[351049889,1738307447186,-1222.44,0.00016986,2]
[351049891,1738307447202,-500.0,0.00016986,2]
[351049893,1738307447212,-2188.85,0.00016986,2]
[351049895,1738307447222,-500.0,0.00016986,2]
[351049897,1738307447231,-16689.68,0.00016986,2]
[351049899,1738307447242,-500.0,0.00016986,2]
[351049901,1738307447252,-500.0,0.00016986,2]
[351049903,1738307447261,-500.0,0.00016986,2]
[351049905,1738307447271,-6046.91,0.00016986,2]
[351049907,1738307447281,-500.0,0.00016986,2]
[351049909,1738307447291,-740.13,0.00016986,2]
[351049911,1738307447300,-339.111246,0.00016986,2]
[351049913,1738307447310,-500.0,0.00016986,2]
[351049915,1738307447320,-339.111246,0.00016986,2]
[351049917,1738307447329,-500.0,0.00016986,2]
[351049919,1738307447339,-500.0,0.00016986,2]
[351049921,1738307447348,-515.62,0.00016986,2]
[351049923,1738307447358,-500.0,0.00016986,2]
[351049925,1738307447367,-504.13960063,0.00016986,2]
[351049927,1738307447376,-1296.18,0.00016986,2]
[351049929,1738307447388,-500.0,0.00016986,2]
[351049931,1738307447399,-500.0,0.00016986,2]
[351049933,1738307447408,-566.7,0.00016986,2]
[351049935,1738307447418,-500.0,0.00016986,2]
[351049937,1738307447427,-192.595445,0.00016986,2]
[351049939,1738307447439,-517.92,0.00016986,2]
[351049941,1738307447448,-192.595445,0.00016986,2]
[351049943,1738307447458,-500.0,0.00016986,2]
[351049945,1738307447469,-531.92762221,0.00016986,2]
[351049947,1738307447478,-500.0,0.00016986,2]
[351049949,1738307447488,-190.68,0.00016986,2]
[351049951,1738307447498,-500.0,0.00016986,2]
[351049953,1738307447507,-500.0,0.00016986,2]
[351049955,1738307447517,-158.499103,0.00016986,2]
[351049957,1738307447526,-500.0,0.00016986,2]
[351049959,1738307447535,-608.54,0.00016986,2]
[351049961,1738307447544,-158.499103,0.00016986,2]
[351049963,1738307447554,-500.0,0.00016986,2]
[351049965,1738307447563,-500.0,0.00016986,2]
[351049967,1738307447572,-500.0,0.00016986,2]
[351049969,1738307447581,-17201.61,0.00016986,2]
[351049971,1738307447591,-1956.58,0.00016986,2]
[351049973,1738307447600,-500.0,0.00016986,2]
[351049975,1738307447610,-500.0,0.00016986,2]
[351049977,1738307447619,-500.0,0.00016986,2]
[351049979,1738307447628,-500.0,0.00016986,2]
[351049981,1738307447637,-151.0,0.00016986,2]
[351049983,1738307447646,-756.03,0.00016986,2]
[351049985,1738307447655,-500.0,0.00016986,2]
[351049987,1738307447665,-500.0,0.00016986,2]
[351049989,1738307447675,-500.0,0.00016986,2]
[351049991,1738307447684,-151.0,0.00016986,2]
[351049992,1738307447693,-500.0,0.00016986,2]
[351049993,1738307447702,-500.0,0.00016986,2]
[351049994,1738307447711,-500.0,0.00016986,2]
[351049995,1738307447720,-151.0,0.00016986,2]
[351049996,1738307447729,-151.0,0.00016986,2]
[351049997,1738307447740,-511.46364764,0.00016986,2]
[351049998,1738307447749,-500.0,0.00016986,2]
[351049999,1738307447758,-500.0,0.00016986,2]
[351050001,1738307447767,-500.0,0.00016986,2]
[351050003,1738307447777,-500.0,0.00016986,2]
[351050004,1738307447786,-500.0,0.00016986,2]
[351050005,1738307447795,-500.0,0.00016986,2]
[351050006,1738307447805,-500.0,0.00016986,2]
[351050007,1738307447814,-500.0,0.00016986,2]
[351050008,1738307447823,-500.0,0.00016986,2]
[351050009,1738307447833,-500.0,0.00016986,2]
[351050010,1738307447843,-500.0,0.00016986,2]
[351050011,1738307447853,-500.0,0.00016986,2]
[351050012,1738307447862,-500.0,0.00016986,2]
[351050013,1738307447872,-1411.47,0.00016986,2]
[351050014,1738307447882,-500.0,0.00016986,2]
[351050015,1738307447891,-3586.79,0.00016986,2]
[351050016,1738307447900,-500.0,0.00016986,2]
[351050017,1738307447911,-151.0,0.00016986,2]
[351050018,1738307447920,-500.0,0.00016986,2]
[351050019,1738307447930,-500.0,0.00016986,2]
[351050020,1738307447939,-560.918603,0.00016986,2]
[351050021,1738307447949,-1132.03,0.00016986,2]
[351050022,1738307447959,-500.0,0.00016986,2]
[351050023,1738307447968,-500.0,0.00016986,2]
[351050024,1738307447978,-560.918603,0.00016986,2]
[351050025,1738307448061,-500.0,0.00016986,2]
[351050026,1738307448072,-500.0,0.00016986,2]
[351050027,1738307448082,-500.0,0.00016986,2]
[351050028,1738307448095,-500.0,0.00016986,2]
[351050029,1738307448106,-500.0,0.00016986,2]
[351050030,1738307448116,-500.0,0.00016986,2]
[351050031,1738307448125,-500.0,0.00016986,2]
[351050032,1738307448135,-182.284592,0.00016986,2]
[351050033,1738307448145,-151.0,0.00016986,2]
[351050034,1738307448155,-500.0,0.00016986,2]
[351050035,1738307448165,-1481.55,0.00016986,2]
[351050037,1738307448174,-182.284592,0.00016986,2]
[351050039,1738307448183,-500.0,0.00016986,2]
[351050041,1738307448193,-500.0,0.00016986,2]
[351050043,1738307448202,-500.0,0.00016986,2]
[351050045,1738307448211,-500.0,0.00016986,2]
[351050047,1738307448221,-500.0,0.00016986,2]
[351050049,1738307448232,-500.0,0.00016986,2]
[351050051,1738307448244,-499.96,0.00016986,2]
[351050053,1738307448256,-500.0,0.00016986,2]
[351050055,1738307448270,-500.0,0.00016986,2]
[351050057,1738307448280,-293.47,0.00016986,2]
[351050059,1738307448290,-500.0,0.00016986,2]
[351050061,1738307448299,-500.0,0.00016986,2]
[351050063,1738307448309,-500.0,0.00016986,2]
[351050065,1738307448319,-1157.37,0.00016986,2]
[351050067,1738307448329,-431.1221748,0.00017,2]
[351050069,1738307448338,-215.5610874,0.00017,2]
[351050071,1738307448348,-215.5610874,0.00017,2]
[351050073,1738307448357,-215.5610874,0.00017,2]
[351050075,1738307448367,-215.5610874,0.00017,2]
[351050077,1738307448377,-211.327489,0.00017,2]
[351050078,1738307448392,-151.0,0.00017,2]
[351050079,1738307448401,-21261.62038488,0.00017,2]
[351050080,1738307448411,-151.0,0.00017,2]
[351050082,1738307448421,-182.284592,0.00017,2]
[351050083,1738307448434,-182.284592,0.00017,2]
[351050085,1738307448444,-500.0,0.00017021,2]
[351050087,1738307448455,-151.0,0.000171,2]
[351050089,1738307448464,-505.22537676,0.00017121,2]
[351050091,1738307448475,-510.83,0.00017122,2]
[351050093,1738307448485,-510.83,0.00017122,2]
[351050095,1738307448496,-510.83,0.00017122,2]
[351050096,1738307448506,-510.83,0.00017122,2]
[351050098,1738307448516,-510.98853096,0.00017122,2]
[351050100,1738307448525,-151.0,0.00017122,2]
[351050101,1738307448536,-151.0,0.00017122,2]
[351050103,1738307448546,-646.901412,0.00017122,2]
[351050105,1738307448556,-646.901412,0.00017122,2]
[351050107,1738307448566,-195.333392,0.00017122,2]
[351050108,1738307448577,-195.333392,0.00017122,2]
[351050109,1738307448586,-686.53,0.00017122,2]
[351050110,1738307448596,-686.53,0.00017122,2]
[351050111,1738307448606,-686.53,0.00017122,2]
[351050112,1738307448616,-686.53,0.00017122,2]
[351050113,1738307448625,-686.53,0.00017122,2]
[351050114,1738307448635,-686.69653189,0.00017122,2]
[351050115,1738307448645,-500.0,0.00017123,2]
[351050116,1738307448655,-151.0,0.00017123,2]
[351050117,1738307448665,-500.0,0.00017123,2]
[351050118,1738307448675,-500.0,0.00017123,2]
[351050119,1738307448684,-500.0,0.00017123,2]
[351050120,1738307448695,-500.0,0.00017123,2]
[351050121,1738307448704,-500.0,0.00017123,2]
[351050122,1738307448714,-500.0,0.00017123,2]
[351050123,1738307448724,-500.0,0.00017123,2]
[351050124,1738307448734,-500.0,0.00017123,2]
[351050125,1738307448745,-500.0,0.00017123,2]
[351050126,1738307448754,-500.0,0.00017123,2]
[351050127,1738307448764,-176.63245234,0.00017123,2]
[351050128,1738307448773,-500.0,0.00017123,2]
[351050129,1738307448783,-500.0,0.00017123,2]
[351050130,1738307448793,-500.0,0.00017123,2]
[351050131,1738307448802,-500.0,0.00017123,2]
[351050132,1738307448812,-500.0,0.00017123,2]
[351050133,1738307448821,-608.33100082,0.00017123,2]
[351050134,1738307448831,-500.0,0.00017123,2]
[351050135,1738307448841,-500.0,0.00017123,2]
[351050136,1738307448850,-536.03,0.00017123,2]
[351050137,1738307448864,-500.0,0.00017123,2]
[351050138,1738307448874,-500.0,0.00017123,2]
[351050139,1738307448885,-500.0,0.00017123,2]
[351050140,1738307448895,-592.37,0.00017123,2]
[351050141,1738307448904,-500.0,0.00017123,2]
[351050142,1738307448914,-500.0,0.00017123,2]
[351050143,1738307448925,-500.0,0.00017123,2]
[351050144,1738307448934,-500.0,0.00017123,2]
[351050145,1738307448945,-500.0,0.00017123,2]
[351050146,1738307448955,-500.0,0.00017123,2]
[351050147,1738307448965,-500.0,0.00017123,2]
[351050148,1738307448974,-1222.44,0.00017123,2]
[351050149,1738307448984,-2188.85,0.00017123,2]
[351050150,1738307448994,-500.0,0.00017123,2]
[351050151,1738307449004,-16689.68,0.00017123,2]
[351050152,1738307449014,-500.0,0.00017123,2]
[351050153,1738307449024,-500.0,0.00017123,2]
[351050154,1738307449033,-6046.91,0.00017123,2]
[351050155,1738307449043,-500.0,0.00017123,2]
[351050156,1738307449052,-740.13,0.00017123,2]
[351050157,1738307449063,-339.111246,0.00017123,2]
[351050158,1738307449072,-500.0,0.00017123,2]
[351050159,1738307449082,-339.111246,0.00017123,2]
[351050160,1738307449092,-500.0,0.00017123,2]
[351050161,1738307449102,-500.0,0.00017123,2]
[351050162,1738307449112,-515.62,0.00017123,2]
[351050163,1738307449122,-636.48216601,0.00017123,2]
[351050164,1738307449131,-1296.18,0.00017123,2]
[351050165,1738307449141,-512.15346549,0.00017123,2]
[351050166,1738307449151,-500.0,0.00017123,2]
[351050167,1738307449161,-566.7,0.00017123,2]
[351050168,1738307449170,-192.595445,0.00017123,2]
[351050169,1738307449180,-517.92,0.00017123,2]
[351050170,1738307449190,-192.595445,0.00017123,2]
[351050171,1738307449199,-500.0,0.00017123,2]
[351050172,1738307449209,-500.0,0.00017123,2]
[351050173,1738307449219,-500.0,0.00017123,2]
[351050174,1738307449231,-158.499103,0.00017123,2]
[351050175,1738307449244,-500.0,0.00017123,2]
[351050176,1738307449254,-608.54,0.00017123,2]
[351050177,1738307449263,-158.499103,0.00017123,2]
[351050178,1738307449273,-500.0,0.00017123,2]
[351050179,1738307449283,-500.0,0.00017123,2]
[351050180,1738307449292,-586.57,0.00017123,2]
[351050181,1738307449301,-17201.61,0.00017123,2]
[351050182,1738307449311,-1956.58,0.00017123,2]
[351050183,1738307449320,-500.0,0.00017123,2]
[351050184,1738307449329,-500.0,0.00017123,2]
[351050185,1738307449339,-500.0,0.00017123,2]
[351050186,1738307449348,-151.0,0.00017123,2]
[351050187,1738307449358,-756.03,0.00017123,2]
[351050188,1738307449367,-500.0,0.00017123,2]
[351050189,1738307449376,-524.01504107,0.00017123,2]
[351050190,1738307449387,-500.0,0.00017123,2]
[351050191,1738307449398,-151.0,0.00017123,2]
[351050192,1738307449407,-500.0,0.00017123,2]
[351050193,1738307449417,-500.0,0.00017123,2]
[351050194,1738307449426,-151.0,0.00017123,2]
[351050195,1738307449437,-151.0,0.00017123,2]
[351050196,1738307449446,-500.0,0.00017123,2]
[351050197,1738307449455,-500.0,0.00017123,2]
[351050198,1738307449464,-500.0,0.00017123,2]
[351050199,1738307449474,-500.0,0.00017123,2]
[351050200,1738307449484,-232.15,0.00017123,2]
[351050201,1738307449494,-500.0,0.00017123,2]
[351050202,1738307449503,-500.0,0.00017123,2]
[351050203,1738307449512,-500.0,0.00017123,2]
[351050204,1738307449591,-500.0,0.00017123,2]
[351050205,1738307449601,-500.0,0.00017123,2]
[351050206,1738307449610,-500.0,0.00017123,2]
[351050207,1738307449619,-500.0,0.00017123,2]
[351050208,1738307449628,-500.0,0.00017123,2]
[351050209,1738307449638,-1411.47,0.00017123,2]
[351050210,1738307449647,-500.0,0.00017123,2]
[351050211,1738307449656,-3586.79,0.00017123,2]
[351050212,1738307449666,-500.0,0.00017123,2]
[351050213,1738307449676,-500.0,0.00017123,2]
[351050214,1738307449686,-560.918603,0.00017123,2]
[351050215,1738307449695,-1132.03,0.00017123,2]
[351050216,1738307449705,-500.0,0.00017123,2]
[351050217,1738307449714,-560.918603,0.00017123,2]
[351050218,1738307449724,-500.0,0.00017123,2]
[351050219,1738307449733,-500.0,0.00017123,2]
[351050220,1738307449743,-500.0,0.00017123,2]
[351050221,1738307449754,-500.0,0.00017123,2]
[351050222,1738307449763,-500.0,0.00017123,2]
[351050223,1738307449773,-500.0,0.00017123,2]
[351050224,1738307449782,-1481.55,0.00017123,2]
[351050225,1738307449791,-500.0,0.00017123,2]
[351050226,1738307449800,-500.0,0.00017123,2]
[351050227,1738307449810,-422.57379249,0.00017123,2]
[351050228,1738307449820,-500.0,0.00017123,2]
[351050229,1738307449830,-500.0,0.00017123,2]
[351050230,1738307449839,-500.0,0.00017123,2]
[351050231,1738307449849,-500.0,0.00017123,2]
[351050232,1738307449858,-500.0,0.00017123,2]
[351050233,1738307449867,-500.0,0.00017123,2]
[351050234,1738307449877,-312.71507777,0.00017151,2]
[351050235,1738307449886,-7431.24259165,0.0001716,2]
[351050236,1738307449896,-151.0,0.000172,2]
[351050237,1738307449905,-500.0,0.0001726,2]
[351050238,1738307449915,-500.0,0.0001726,2]
[351050239,1738307449924,-500.0,0.0001726,2]
[351050240,1738307449934,-500.0,0.0001726,2]
[351050241,1738307449943,-500.0,0.0001726,2]
[351050242,1738307449953,-500.0,0.0001726,2]
[351050243,1738307449962,-500.0,0.0001726,2]
[351050244,1738307449972,-500.0,0.0001726,2]
[351050245,1738307449981,-500.0,0.0001726,2]
[351050246,1738307449990,-500.0,0.0001726,2]
[351050247,1738307449999,-500.0,0.0001726,2]
[351050248,1738307450009,-500.0,0.0001726,2]
[351050249,1738307450018,-500.0,0.0001726,2]
[351050250,1738307450027,-500.0,0.0001726,2]
[351050251,1738307450037,-500.0,0.0001726,2]
[351050252,1738307450046,-500.0,0.0001726,2]
[351050253,1738307450055,-500.0,0.0001726,2]
[351050254,1738307450064,-500.0,0.0001726,2]
[351050255,1738307450073,-500.0,0.0001726,2]
[351050256,1738307450083,-500.0,0.0001726,2]
[351050257,1738307450092,-151.0,0.0001726,2]
[351050258,1738307450101,-1222.44,0.0001726,2]
[351050259,1738307450111,-646.901412,0.0001726,2]
[351050260,1738307450120,-2188.85,0.0001726,2]
[351050261,1738307450131,-646.901412,0.0001726,2]
[351050262,1738307450141,-500.0,0.0001726,2]
[351050263,1738307450150,-16689.68,0.0001726,2]
[351050264,1738307450161,-500.0,0.0001726,2]
[351050265,1738307450170,-500.0,0.0001726,2]
[351050266,1738307450180,-195.333392,0.0001726,2]
[351050267,1738307450190,-6046.91,0.0001726,2]
[351050268,1738307450199,-195.333392,0.0001726,2]
[351050269,1738307450208,-740.13,0.0001726,2]
[351050270,1738307450218,-500.0,0.0001726,2]
[351050271,1738307450228,-159.80207944,0.0001726,2]
[351050272,1738307450237,-500.0,0.0001726,2]
[351050273,1738307450246,-515.62,0.0001726,2]
[351050274,1738307450255,-1296.18,0.0001726,2]
[351050275,1738307450264,-500.0,0.0001726,2]
[351050276,1738307450273,-566.7,0.0001726,2]
[351050277,1738307450283,-517.92,0.0001726,2]
[351050278,1738307450293,-500.0,0.0001726,2]
[351050279,1738307450302,-500.0,0.0001726,2]
[351050280,1738307450312,-500.0,0.0001726,2]
[351050281,1738307450322,-359.34725326,0.0001726,2]
[351050282,1738307450332,-608.54,0.0001726,2]
[351050283,1738307450342,-500.0,0.0001726,2]
[351050284,1738307450352,-17201.61,0.0001726,2]
[351050285,1738307450361,-1956.58,0.0001726,2]
[351050286,1738307450370,-500.0,0.0001726,2]
[351050287,1738307450379,-323.52,0.0001726,2]
[351050288,1738307450393,-756.03,0.0001726,2]
[351050289,1738307450401,-500.0,0.0001726,2]
[351050290,1738307450410,-206.61,0.0001726,2]
[351050291,1738307450419,-151.0,0.0001726,2]
[351050292,1738307450430,-500.0,0.0001726,2]
[351050293,1738307450439,-500.0,0.0001726,2]
[351050294,1738307450449,-265.035017,0.0001726,2]
[351050295,1738307450458,-151.0,0.0001726,2]
[351050296,1738307450467,-500.0,0.0001726,2]
[351050297,1738307450477,-500.0,0.0001726,2]
[351050298,1738307450486,-500.0,0.0001726,2]
[351050299,1738307450496,-500.0,0.0001726,2]
[351050300,1738307450505,-161.38,0.0001726,2]
[351050301,1738307450513,-500.0,0.0001726,2]
[351050302,1738307450523,-500.0,0.0001726,2]
[351050303,1738307450533,-500.0,0.0001726,2]
[351050304,1738307450542,-500.0,0.0001726,2]
[351050305,1738307450551,-500.0,0.0001726,2]
[351050306,1738307450561,-1411.47,0.0001726,2]
[351050307,1738307450570,-500.0,0.0001726,2]
[351050308,1738307450579,-3586.79,0.0001726,2]
[351050309,1738307450588,-577.12,0.0001726,2]
[351050310,1738307450598,-500.0,0.0001726,2]
[351050311,1738307450607,-560.918603,0.0001726,2]
[351050312,1738307450617,-1132.03,0.0001726,2]
[351050313,1738307450627,-500.0,0.0001726,2]
[351050314,1738307450636,-560.918603,0.0001726,2]
[351050315,1738307450645,-500.0,0.0001726,2]
[351050316,1738307450655,-500.0,0.0001726,2]
[351050317,1738307450664,-500.0,0.0001726,2]
[351050318,1738307450674,-500.0,0.0001726,2]
[351050319,1738307450683,-500.0,0.0001726,2]
[351050320,1738307450692,-182.284592,0.0001726,2]
[351050321,1738307450701,-500.0,0.0001726,2]
[351050322,1738307450710,-1481.55,0.0001726,2]
[351050323,1738307450719,-182.284592,0.0001726,2]
[351050324,1738307450728,-500.0,0.0001726,2]
[351050325,1738307450738,-500.0,0.0001726,2]
[351050326,1738307450748,-500.0,0.0001726,2]
[351050327,1738307450758,-229.36,0.0001726,2]
[351050328,1738307450767,-500.0,0.0001726,2]
[351050329,1738307450777,-500.0,0.0001726,2]
[351050330,1738307450786,-500.0,0.0001726,2]
[351050331,1738307450795,-500.0,0.00017397,2]
[351050332,1738307450804,-500.0,0.00017397,2]
[351050333,1738307450814,-500.0,0.00017397,2]
[351050334,1738307450823,-500.0,0.00017397,2]
[351050335,1738307450833,-500.0,0.00017397,2]
[351050336,1738307450842,-500.0,0.00017397,2]
[351050337,1738307450852,-500.0,0.00017397,2]
[351050338,1738307450926,-500.0,0.00017397,2]
[351050339,1738307450936,-500.0,0.00017397,2]
[351050340,1738307450945,-500.0,0.00017397,2]
[351050341,1738307450955,-500.0,0.00017397,2]
[351050342,1738307450965,-500.0,0.00017397,2]
[351050343,1738307450974,-500.0,0.00017397,2]
[351050344,1738307450984,-500.0,0.00017397,2]
[351050345,1738307450995,-1222.44,0.00017397,2]
[351050346,1738307451004,-2188.85,0.00017397,2]
[351050347,1738307451014,-500.0,0.00017397,2]
[351050348,1738307451023,-16689.68,0.00017397,2]
[351050349,1738307451034,-500.0,0.00017397,2]
[351050350,1738307451044,-500.0,0.00017397,2]
[351050351,1738307451054,-6046.91,0.00017397,2]
[351050352,1738307451063,-740.13,0.00017397,2]
[351050353,1738307451072,-339.111246,0.00017397,2]
[351050354,1738307451081,-500.0,0.00017397,2]
[351050355,1738307451091,-339.111246,0.00017397,2]
[351050356,1738307451101,-500.0,0.00017397,2]
[351050357,1738307451109,-515.62,0.00017397,2]
[351050358,1738307451119,-1296.18,0.00017397,2]
[351050359,1738307451128,-500.0,0.00017397,2]
[351050360,1738307451138,-566.7,0.00017397,2]
[351050361,1738307451147,-192.595445,0.00017397,2]
[351050362,1738307451157,-517.92,0.00017397,2]
[351050363,1738307451166,-192.595445,0.00017397,2]
[351050364,1738307451176,-500.0,0.00017397,2]
[351050365,1738307451185,-175.13658105,0.00017397,2]
[351050366,1738307451195,-500.0,0.00017397,2]
[351050367,1738307451205,-158.499103,0.00017397,2]
[351050368,1738307451214,-608.54,0.00017397,2]
[351050369,1738307451224,-158.499103,0.00017397,2]
[351050370,1738307451233,-500.0,0.00017397,2]
[351050371,1738307451243,-17201.61,0.00017397,2]
[351050372,1738307451252,-1956.58,0.00017397,2]
[351050373,1738307451261,-500.0,0.00017397,2]
[351050374,1738307451271,-151.0,0.00017397,2]
[351050375,1738307451280,-756.03,0.00017397,2]
[351050376,1738307451289,-500.0,0.00017397,2]
[351050377,1738307451299,-500.0,0.00017397,2]
[351050378,1738307451308,-500.0,0.00017397,2]
[351050379,1738307451317,-500.0,0.00017397,2]
[351050380,1738307451327,-500.0,0.00017397,2]
[351050381,1738307451336,-500.0,0.00017397,2]
[351050382,1738307451346,-447.18,0.00017397,2]
[351050383,1738307451355,-500.0,0.00017397,2]
[351050384,1738307451365,-500.0,0.00017397,2]
[351050385,1738307451374,-1411.47,0.00017397,2]
[351050386,1738307451384,-3586.79,0.00017397,2]
[351050387,1738307451398,-1132.03,0.00017397,2]
[351050388,1738307451408,-500.0,0.00017397,2]
[351050389,1738307451417,-452.42018988,0.00017397,2]
[351050390,1738307451427,-500.0,0.00017397,2]
[351050391,1738307451438,-500.0,0.00017397,2]
[351050392,1738307451448,-182.284592,0.00017397,2]
[351050393,1738307451457,-500.0,0.00017397,2]
[351050394,1738307451468,-1481.55,0.00017397,2]
[351050395,1738307451477,-182.284592,0.00017397,2]
[351050396,1738307451487,-500.0,0.00017397,2]
[351050397,1738307451499,-378.18,0.00017397,2]
[351050398,1738307451509,-500.0,0.00017397,2]
[351050399,1738307451518,-500.0,0.00017397,2]
[351050400,1738307451527,-153.0,0.00017397,2]
[351050401,1738307451536,-153.0,0.00017397,2]
[351050402,1738307451545,-154.4000799,0.00017397,2]
[351050403,1738307451554,-306.0,0.00017397,2]
[351050404,1738307451564,-308.7519677,0.00017397,2]
[351050405,1738307451573,-312.5996199,0.00017397,2]
[351050406,1738307451583,-153.0,0.00017397,2]
[351050407,1738307451592,-154.4000799,0.00017397,2]
[351050408,1738307451601,-153.0,0.00017397,2]
[351050409,1738307451610,-153.0,0.00017397,2]
[351050410,1738307451620,-154.4000799,0.00017397,2]
[351050411,1738307451629,-153.0,0.00017397,2]
[351050412,1738307451638,-153.0,0.00017397,2]
[351050413,1738307451648,-153.0,0.00017397,2]
[351050414,1738307451658,-153.0,0.00017397,2]
[351050415,1738307451667,-154.4000799,0.00017397,2]
[351050416,1738307451677,-153.0,0.00017397,2]
[351050417,1738307451686,-500.0,0.00017452,2]
[351050418,1738307451695,-420.0,0.00017492,2]
[351050419,1738307451704,-151.0,0.00017534,2]
[351050420,1738307451714,-500.0,0.00017534,2]
[351050421,1738307451723,-500.0,0.00017534,2]
[351050422,1738307451732,-500.0,0.00017534,2]
[351050423,1738307451743,-500.0,0.00017534,2]
[351050424,1738307451752,-500.0,0.00017534,2]
[351050425,1738307451762,-432.47,0.00017534,2]
[351050426,1738307451771,-500.0,0.00017534,2]
[351050427,1738307451781,-500.0,0.00017534,2]
[351050428,1738307451791,-500.0,0.00017534,2]
[351050429,1738307451800,-1222.44,0.00017534,2]
[351050430,1738307451809,-2188.85,0.00017534,2]
[351050431,1738307451818,-500.0,0.00017534,2]
[351050432,1738307451827,-16689.68,0.00017534,2]
[351050433,1738307451837,-500.0,0.00017534,2]
[351050434,1738307451846,-500.0,0.00017534,2]
[351050435,1738307451856,-6046.91,0.00017534,2]
[351050436,1738307451865,-740.13,0.00017534,2]
[351050437,1738307451874,-500.0,0.00017534,2]
[351050438,1738307451883,-500.0,0.00017534,2]
[351050439,1738307451892,-515.62,0.00017534,2]
[351050440,1738307451902,-1296.18,0.00017534,2]
[351050441,1738307451911,-500.0,0.00017534,2]